[Event "13 Open de Quenza"]
[Site "Quenza, France"]
[Date "2024.07.07"]
[Round "1.1"]
[White "Anand, Viswanathan"]
[Black "Rauscher, Philemon"]
[Result "1-0"]
[TimeControl "5min+3s/move"]
[WhiteElo "2751"]
[BlackElo "1099"]

1. e4 {[%clk 00:05:03]} e5 {[%clk 00:05:03]} {[%emt 00:00:02]} 2. Nf3 {[%clk
00:05:03]} Nc6 {[%clk 00:05:03]} {[%emt 00:00:02]} 3. Bb5 {[%clk 00:05:03]}
{[%emt 00:00:02]} a6 {[%clk 00:05:03]} {[%emt 00:00:02]} 4. Ba4 {[%clk
00:05:03]} {[%emt 00:00:01]} Nf6 {[%clk 00:05:03]} {[%emt 00:00:02]} 5. O-O
{[%clk 00:05:03]} {[%emt 00:00:02]} Bc5 {[%clk 00:05:03]} {[%emt 00:00:04]} 6.
c3 {[%clk 00:05:03]} {[%emt 00:00:03]} O-O {[%clk 00:05:01]} {[%emt 00:00:05]}
7. d4 {[%clk 00:05:03]} {[%emt 00:00:02]} exd4 {[%clk 00:05:01]} {[%emt
00:00:03]} 8. cxd4 {[%clk 00:05:03]} {[%emt 00:00:02]} Bb4 {[%clk 00:05:01]}
{[%emt 00:00:02]} 9. a3 {[%clk 00:05:00]} {[%emt 00:00:06]} Ba5 {[%clk
00:05:00]} {[%emt 00:00:03]} 10. e5 {[%clk 00:04:48]} {[%emt 00:00:15]} Ne4
{[%clk 00:04:51]} {[%emt 00:00:12]} 11. d5 {[%clk 00:04:44]} {[%emt 00:00:07]}
Nxe5 {[%clk 00:04:35]} {[%emt 00:00:19]} 12. Nxe5 {[%clk 00:04:44]} {[%emt
00:00:02]} Qe8 {[%clk 00:04:35]} {[%emt 00:00:04]} 13. Nc4 {[%clk 00:04:43]}
{[%emt 00:00:04]} b5 {[%clk 00:04:34]} {[%emt 00:00:05]} 14. Nxa5 {[%clk
00:04:43]} {[%emt 00:00:02]} bxa4 {[%clk 00:04:34]} {[%emt 00:00:03]} 15. Re1
{[%clk 00:04:43]} {[%emt 00:00:01]} h6 {[%clk 00:04:20]} {[%emt 00:00:17]} 16.
Qd4 {[%clk 00:04:31]} {[%emt 00:00:14]} f5 {[%clk 00:04:01]} {[%emt 00:00:22]}
17. f3 {[%clk 00:04:31]} {[%emt 00:00:01]} c5 {[%clk 00:03:33]} {[%emt
00:00:31]} 18. dxc6 {[%clk 00:04:29]} {[%emt 00:00:05]} dxc6 {[%clk 00:02:49]}
{[%emt 00:00:48]} 19. fxe4 {[%clk 00:04:29]} {[%emt 00:00:01]} fxe4 {[%clk
00:02:47]} {[%emt 00:00:05]} 20. Nc3 {[%clk 00:04:22]} {[%emt 00:00:09]} Qf7
{[%clk 00:02:25]} {[%emt 00:00:26]} 21. Be3 {[%clk 00:04:20]} {[%emt 00:00:05]}
Rb8 {[%clk 00:02:18]} {[%emt 00:00:11]} 22. Rf1 {[%clk 00:04:20]} {[%emt
00:00:02]} Qe7 {[%clk 00:01:54]} {[%emt 00:00:26]} 23. Nxc6 {[%clk 00:04:20]}
{[%emt 00:00:03]} Rxf1+ {[%clk 00:01:13]} {[%emt 00:00:45]} 24. Rxf1 {[%clk
00:04:20]} {[%emt 00:00:02]} Qe8 {[%clk 00:01:13]} {[%emt 00:00:02]} 25. Nxb8
{[%emt 00:00:04]} Qg6 {[%clk 00:01:07]} {[%emt 00:00:08]} 26. Nd5 {[%clk
00:04:19]} {[%emt 00:00:02]} Kh7 {[%clk 00:01:01]} {[%emt 00:00:09]} 27. Ne7
{[%clk 00:04:17]} {[%emt 00:00:05]} Qe8 {[%clk 00:00:41]} {[%emt 00:00:24]} 28.
Nxc8 {[%clk 00:04:11]} {[%emt 00:00:08]} Qxc8 {[%clk 00:00:41]} {[%emt
00:00:02]} 29. Nd7 {[%clk 00:04:11]} {[%emt 00:00:01]} Qh8 {[%clk 00:00:15]}
{[%emt 00:00:28]} 30. Qxe4+ {[%clk 00:04:11]} {[%emt 00:00:02]} g6 {[%clk
00:00:15]} {[%emt 00:00:04]} 31. Rf7+ {[%clk 00:04:11]} {[%emt 00:00:01]} Kg8
{[%clk 00:00:15]} {[%emt 00:00:02]} 32. Qe8# {[%clk 00:04:11]} {[%emt
00:00:01]} 1-0

[Event "13 Open de Quenza"]
[Site "Quenza, France"]
[Date "2024.07.07"]
[Round "1.2"]
[White "Geronimi, Didier"]
[Black "Fressinet, Laurent"]
[Result "0-1"]
[TimeControl "5min+3s/move"]
[WhiteElo "1683"]
[BlackElo "2625"]

1. e4 {[%clk 00:05:03]} {[%emt 00:29:54]} e5 {[%clk 00:05:03]} {[%emt
00:00:01]} 2. Bc4 {[%clk 00:05:03]} {[%emt 00:00:02]} Nf6 {[%clk 00:05:03]}
{[%emt 00:00:01]} 3. d4 {[%clk 00:05:03]} {[%emt 00:00:01]} exd4 {[%clk
00:04:59]} {[%emt 00:00:07]} 4. Nf3 {[%clk 00:05:03]} {[%emt 00:00:01]} Nc6
{[%clk 00:04:59]} {[%emt 00:00:01]} 5. O-O {[%clk 00:05:03]} {[%emt 00:00:04]}
Nxe4 {[%clk 00:04:55]} {[%emt 00:00:08]} 6. Re1 {[%clk 00:04:53]} {[%emt
00:00:13]} d5 {[%clk 00:04:55]} {[%emt 00:00:01]} 7. Bb5 {[%clk 00:04:04]}
{[%emt 00:00:52]} Be7 {[%clk 00:04:49]} {[%emt 00:00:08]} 8. Nxd4 {[%clk
00:03:55]} {[%emt 00:00:13]} Bd7 {[%clk 00:04:49]} {[%emt 00:00:02]} 9. Bxc6
{[%clk 00:03:30]} {[%emt 00:00:29]} bxc6 {[%clk 00:04:49]} {[%emt 00:00:03]} 10.
Qf3 {[%clk 00:02:44]} {[%emt 00:00:48]} O-O {[%clk 00:04:46]} {[%emt 00:00:07]}
11. Nc3 {[%clk 00:02:43]} {[%emt 00:00:05]} f5 {[%clk 00:04:29]} {[%emt
00:00:19]} 12. Qd3 {[%clk 00:01:54]} {[%emt 00:00:51]} Bd6 {[%clk 00:04:20]}
{[%emt 00:00:13]} 13. g3 {[%clk 00:01:16]} {[%emt 00:00:42]} Qf6 {[%clk
00:04:10]} {[%emt 00:00:13]} 14. Be3 {[%clk 00:01:10]} {[%emt 00:00:09]} Rae8
{[%clk 00:03:59]} {[%emt 00:00:14]} 15. Nf3 {[%clk 00:01:07]} {[%emt 00:00:07]}
f4 {[%clk 00:03:43]} {[%emt 00:00:18]} 16. Bd4 {[%clk 00:00:56]} {[%emt
00:00:14]} Qf7 {[%clk 00:03:08]} {[%emt 00:00:38]} 17. Nxe4 {[%clk 00:00:39]}
{[%emt 00:00:20]} dxe4 {[%clk 00:03:08]} {[%emt 00:00:02]} 18. Rxe4 {[%clk
00:00:37]} {[%emt 00:00:05]} Bf5 {[%clk 00:02:57]} {[%emt 00:00:14]} 19. Rae1
{[%clk 00:00:24]} {[%emt 00:00:16]} Rxe4 {[%clk 00:02:37]} {[%emt 00:00:22]} 20.
Rxe4 {[%emt 00:00:11]} fxg3 {[%clk 00:02:37]} {[%emt 00:00:02]} 21. fxg3 {[%clk
00:00:10]} {[%emt 00:00:10]} Bxe4 {[%clk 00:02:36]} {[%emt 00:00:04]} 0-1

[Event "13 Open de Quenza"]
[Site "Quenza, France"]
[Date "2024.07.07"]
[Round "1.3"]
[White "Bellahcene, Bilel"]
[Black "Di Pinto, Vincenzo"]
[Result "1-0"]
[TimeControl "5min+3s/move"]
[WhiteElo "2535"]
[BlackElo "1661"]

1. e4 {[%clk 00:05:03]} {[%emt 00:00:03]} c5 {[%clk 00:05:03]} {[%emt
00:00:01]} 2. Nf3 {[%clk 00:05:03]} {[%emt 00:00:02]} d6 {[%clk 00:05:03]}
{[%emt 00:00:01]} 3. d4 {[%clk 00:05:03]} {[%emt 00:00:02]} cxd4 {[%clk
00:05:03]} {[%emt 00:00:01]} 4. Nxd4 {[%clk 00:05:03]} Nf6 {[%clk 00:05:03]}
{[%emt 00:00:02]} 5. Nc3 a6 6. h4 {[%clk 00:04:59]} {[%emt 00:00:06]} Nc6
{[%clk 00:05:03]} {[%emt 00:00:05]} 7. h5 {[%clk 00:04:59]} {[%emt 00:00:02]}
Qb6 {[%clk 00:04:48]} {[%emt 00:00:18]} 8. Nb3 {[%clk 00:04:59]} {[%emt
00:00:02]} Bd7 {[%clk 00:04:34]} {[%emt 00:00:17]} 9. Be2 {[%clk 00:04:51]}
{[%emt 00:00:10]} e6 {[%clk 00:04:19]} {[%emt 00:00:18]} 10. h6 {[%clk
00:04:51]} {[%emt 00:00:03]} g6 {[%clk 00:04:19]} {[%emt 00:00:01]} 11. g4
{[%clk 00:04:44]} {[%emt 00:00:09]} O-O-O {[%clk 00:04:09]} {[%emt 00:00:13]}
12. g5 {[%clk 00:04:43]} {[%emt 00:00:05]} Ng8 {[%clk 00:04:09]} 13. Be3 {[%clk
00:04:43]} {[%emt 00:00:03]} Qc7 {[%clk 00:04:00]} {[%emt 00:00:12]} 14. Na4
{[%clk 00:04:43]} {[%emt 00:00:02]} Qb8 {[%clk 00:03:24]} {[%emt 00:00:39]} 15.
Nb6+ {[%emt 00:00:07]} Kc7 16. Qd2 {[%clk 00:04:39]} {[%emt 00:00:02]} Nge7
{[%clk 00:03:07]} {[%emt 00:00:21]} 17. O-O-O {[%clk 00:04:39]} {[%emt
00:00:02]} Nc8 {[%clk 00:03:07]} 18. Qc3 {[%clk 00:04:22]} {[%emt 00:00:20]} e5
{[%clk 00:02:58]} {[%emt 00:00:12]} 19. Nd5# {[%clk 00:04:22]} {[%emt
00:00:02]} 1-0

[Event "13 Open de Quenza"]
[Site "Quenza, France"]
[Date "2024.07.07"]
[Round "1.4"]
[White "Bauzon, Romain"]
[Black "Lagarde, Maxime"]
[Result "0-1"]
[TimeControl "5min+3s/move"]
[WhiteElo "1643"]
[BlackElo "2608"]

1. e4 {[%clk 00:05:03]} c5 {[%clk 00:05:03]} {[%emt 00:00:01]} 2. Nf3 {[%clk
00:05:03]} {[%emt 00:00:01]} e6 {[%clk 00:05:03]} 3. d4 {[%clk 00:05:00]}
{[%emt 00:00:07]} cxd4 {[%clk 00:05:03]} {[%emt 00:00:01]} 4. Nxd4 {[%clk
00:05:00]} {[%emt 00:00:01]} Nc6 {[%clk 00:05:03]} {[%emt 00:00:01]} 5. Nc3
{[%clk 00:05:00]} {[%emt 00:00:03]} a6 {[%clk 00:05:03]} {[%emt 00:00:01]} 6.
Be3 {[%clk 00:04:51]} {[%emt 00:00:11]} Nge7 {[%clk 00:05:03]} {[%emt
00:00:02]} 7. Be2 {[%clk 00:04:51]} {[%emt 00:00:03]} Nxd4 {[%clk 00:05:03]}
{[%emt 00:00:04]} 8. Bxd4 {[%clk 00:04:35]} {[%emt 00:00:19]} Nc6 {[%clk
00:05:03]} {[%emt 00:00:02]} 9. Be3 {[%clk 00:04:35]} {[%emt 00:00:01]} b5
{[%clk 00:05:03]} {[%emt 00:00:03]} 10. a3 {[%clk 00:04:35]} {[%emt 00:00:03]}
Bb7 {[%clk 00:05:03]} {[%emt 00:00:02]} 11. O-O {[%clk 00:04:10]} {[%emt
00:00:27]} Be7 {[%clk 00:04:59]} {[%emt 00:00:07]} 12. f4 {[%clk 00:03:33]}
{[%emt 00:00:40]} O-O {[%clk 00:04:57]} {[%emt 00:00:06]} 13. f5 {[%clk
00:03:33]} {[%emt 00:00:03]} Bf6 {[%clk 00:04:48]} {[%emt 00:00:12]} 14. Qd2
{[%emt 00:00:34]} Rc8 15. Rad1 {[%clk 00:02:47]} {[%emt 00:00:20]} Ne5 {[%clk
00:04:48]} {[%emt 00:00:02]} 16. Bd4 {[%clk 00:02:42]} {[%emt 00:00:08]} Qc7
{[%clk 00:04:41]} {[%emt 00:00:10]} 17. Qe3 {[%clk 00:02:17]} {[%emt 00:00:27]}
d6 {[%clk 00:04:41]} {[%emt 00:00:03]} 0-1

[Event "13 Open de Quenza"]
[Site "Quenza, France"]
[Date "2024.07.07"]
[Round "1.5"]
[White "Fedorchuk, Sergey A."]
[Black "Frisoni, Robin"]
[Result "1-0"]
[TimeControl "5min+3s/move"]
[WhiteElo "2554"]
[BlackElo "1878"]

1. e4 {[%clk 00:05:03]} {[%emt 00:00:02]} c6 {[%clk 00:05:03]} {[%emt
00:00:02]} 2. d4 {[%clk 00:05:02]} {[%emt 00:00:03]} d5 {[%clk 00:05:03]}
{[%emt 00:00:01]} 3. Nd2 {[%clk 00:04:57]} {[%emt 00:00:08]} dxe4 {[%clk
00:05:03]} {[%emt 00:00:03]} 4. Nxe4 {[%clk 00:04:57]} {[%emt 00:00:02]} Nf6
{[%clk 00:05:03]} {[%emt 00:00:02]} 5. Qd3 {[%clk 00:04:57]} {[%emt 00:00:03]}
Nxe4 {[%clk 00:05:01]} {[%emt 00:00:06]} 6. Qxe4 {[%clk 00:04:57]} {[%emt
00:00:02]} Qd5 {[%clk 00:05:00]} {[%emt 00:00:04]} 7. Bd3 {[%clk 00:04:49]}
{[%emt 00:00:10]} g6 {[%clk 00:03:44]} {[%emt 00:01:19]} 8. Nf3 {[%clk
00:04:35]} {[%emt 00:00:17]} Qxe4+ {[%clk 00:03:30]} {[%emt 00:00:17]} 9. Bxe4
{[%clk 00:04:35]} {[%emt 00:00:02]} Bg7 {[%clk 00:03:30]} {[%emt 00:00:03]} 10.
Bf4 {[%clk 00:04:31]} {[%emt 00:00:07]} O-O {[%clk 00:03:12]} {[%emt 00:00:21]}
11. O-O-O {[%clk 00:04:26]} {[%emt 00:00:07]} Bg4 {[%clk 00:03:12]} {[%emt
00:00:03]} 12. h3 {[%clk 00:04:23]} {[%emt 00:00:05]} Bxf3 {[%clk 00:03:12]}
{[%emt 00:00:04]} 13. Bxf3 {[%clk 00:04:23]} {[%emt 00:00:02]} e6 {[%clk
00:03:10]} {[%emt 00:00:05]} 14. Rd3 {[%clk 00:04:06]} {[%emt 00:00:20]} Nd7
{[%clk 00:02:54]} {[%emt 00:00:19]} 15. Re1 {[%clk 00:03:39]} {[%emt 00:00:30]}
Nb6 {[%clk 00:02:35]} {[%emt 00:00:23]} 16. b3 {[%clk 00:03:11]} {[%emt
00:00:31]} Nd5 {[%clk 00:02:29]} {[%emt 00:00:08]} 17. Bd2 {[%clk 00:03:10]}
{[%emt 00:00:04]} a5 {[%clk 00:02:13]} {[%emt 00:00:19]} 18. a3 {[%clk
00:02:27]} {[%emt 00:00:47]} a4 {[%clk 00:01:47]} {[%emt 00:00:29]} 19. c4
{[%clk 00:02:26]} {[%emt 00:00:03]} Nb6 {[%clk 00:01:38]} {[%emt 00:00:13]} 20.
Kc2 {[%clk 00:02:26]} {[%emt 00:00:02]} axb3+ {[%clk 00:01:33]} {[%emt
00:00:08]} 21. Kxb3 {[%clk 00:02:26]} Ra7 {[%clk 00:01:28]} {[%emt 00:00:09]}
22. Bb4 {[%clk 00:01:25]} {[%emt 00:01:04]} Rfa8 {[%clk 00:01:15]} {[%emt
00:00:16]} 23. d5 {[%clk 00:01:17]} {[%emt 00:00:11]} Bf8 {[%clk 00:01:08]}
{[%emt 00:00:10]} 24. d6 {[%clk 00:01:04]} {[%emt 00:00:16]} Nd7 {[%clk
00:01:08]} {[%emt 00:00:02]} 25. c5 {[%clk 00:01:03]} {[%emt 00:00:04]} Bg7
{[%clk 00:00:58]} {[%emt 00:00:13]} 26. Rdd1 {[%clk 00:00:38]} {[%emt
00:00:27]} Re8 {[%clk 00:00:52]} {[%emt 00:00:09]} 27. g4 {[%clk 00:00:37]}
{[%emt 00:00:05]} Raa8 {[%clk 00:00:44]} {[%emt 00:00:11]} 28. Bg2 {[%clk
00:00:37]} {[%emt 00:00:02]} Rab8 {[%clk 00:00:35]} {[%emt 00:00:12]} 29. f4
{[%clk 00:00:37]} {[%emt 00:00:03]} Rec8 {[%clk 00:00:21]} {[%emt 00:00:17]} 30.
f5 {[%clk 00:00:32]} {[%emt 00:00:08]} e5 {[%clk 00:00:14]} {[%emt 00:00:10]}
31. Rc1 {[%clk 00:00:29]} {[%emt 00:00:06]} Ra8 {[%clk 00:00:09]} {[%emt
00:00:08]} 32. Rc2 {[%clk 00:00:29]} {[%emt 00:00:03]} Rab8 {[%clk 00:00:09]}
{[%emt 00:00:01]} 33. Ka2 {[%clk 00:00:28]} {[%emt 00:00:04]} Ra8 {[%clk
00:00:07]} {[%emt 00:00:05]} 34. Rf1 {[%clk 00:00:28]} {[%emt 00:00:02]} Rab8
{[%clk 00:00:07]} {[%emt 00:00:03]} 35. Be4 {[%clk 00:00:27]} {[%emt 00:00:03]}
Re8 {[%clk 00:00:06]} {[%emt 00:00:05]} 36. Rcf2 {[%clk 00:00:27]} {[%emt
00:00:03]} Kh8 {[%clk 00:00:04]} {[%emt 00:00:04]} 37. fxg6 {[%clk 00:00:27]}
{[%emt 00:00:02]} fxg6 {[%clk 00:00:04]} {[%emt 00:00:02]} 38. Rf7 {[%clk
00:00:27]} Nf8 {[%clk 00:00:04]} {[%emt 00:00:04]} 39. h4 {[%clk 00:00:21]}
{[%emt 00:00:09]} Ne6 {[%clk 00:00:04]} {[%emt 00:00:02]} 40. h5 {[%clk
00:00:21]} Nd4 {[%clk 00:00:04]} {[%emt 00:00:02]} 41. hxg6 {[%clk 00:00:20]}
{[%emt 00:00:04]} h6 {[%clk 00:00:04]} {[%emt 00:00:01]} 42. Rh1 {[%clk
00:00:19]} {[%emt 00:00:04]} Nc2 {[%emt 00:00:04]} 1-0

[Event "13 Open de Quenza"]
[Site "Quenza, France"]
[Date "2024.07.07"]
[Round "1.6"]
[White "Steil, Raymond"]
[Black "Dourerassou, Jonathan"]
[Result "0-1"]
[TimeControl "5min+3s/move"]
[WhiteElo "1690"]
[BlackElo "2422"]

1. d4 {[%clk 00:05:03]} {[%emt 00:00:02]} d5 {[%clk 00:05:03]} {[%emt
00:00:01]} 2. Bf4 {[%clk 00:05:03]} {[%emt 00:00:02]} Nf6 {[%clk 00:05:03]}
{[%emt 00:00:01]} 3. e3 {[%clk 00:05:03]} {[%emt 00:00:01]} g6 {[%clk
00:05:03]} {[%emt 00:00:02]} 4. Nf3 {[%clk 00:04:55]} {[%emt 00:00:11]} Bg7
{[%clk 00:05:03]} {[%emt 00:00:01]} 5. Be2 {[%clk 00:04:53]} {[%emt 00:00:05]}
Nh5 {[%clk 00:05:03]} {[%emt 00:00:01]} 6. Bg3 {[%clk 00:04:49]} {[%emt
00:00:07]} Nxg3 {[%clk 00:05:03]} {[%emt 00:00:01]} 7. hxg3 {[%clk 00:04:49]}
{[%emt 00:00:01]} c5 {[%clk 00:05:03]} {[%emt 00:00:01]} 8. c3 {[%clk
00:04:49]} {[%emt 00:00:02]} cxd4 {[%clk 00:05:03]} {[%emt 00:00:02]} 9. cxd4
{[%clk 00:04:49]} {[%emt 00:00:03]} Nc6 {[%clk 00:05:03]} 10. Nbd2 {[%clk
00:04:13]} {[%emt 00:00:39]} Bf5 {[%clk 00:05:03]} {[%emt 00:00:02]} 11. a3
{[%clk 00:03:12]} {[%emt 00:01:05]} O-O {[%clk 00:05:03]} {[%emt 00:00:03]} 12.
O-O {[%clk 00:03:12]} {[%emt 00:00:02]} Rc8 {[%clk 00:05:03]} {[%emt 00:00:02]}
13. Rc1 {[%clk 00:02:29]} {[%emt 00:00:45]} e5 {[%clk 00:04:59]} {[%emt
00:00:07]} 14. Nb3 {[%clk 00:01:52]} {[%emt 00:00:40]} Qb6 {[%clk 00:04:50]}
{[%emt 00:00:12]} 15. Nc5 {[%clk 00:00:33]} {[%emt 00:01:22]} exd4 {[%clk
00:04:49]} {[%emt 00:00:04]} 16. Nxd4 {[%clk 00:00:17]} {[%emt 00:00:18]} Nxd4
{[%clk 00:04:48]} {[%emt 00:00:04]} 17. exd4 {[%clk 00:00:12]} {[%emt
00:00:08]} Qxb2 {[%clk 00:04:48]} {[%emt 00:00:02]} 0-1

[Event "13 Open de Quenza"]
[Site "Quenza, France"]
[Date "2024.07.07"]
[Round "1.8"]
[White "Grimaldi Peetz, Anton"]
[Black "Maurizzi, Marc Andria"]
[Result "0-1"]
[TimeControl "5min+3s/move"]
[WhiteElo "1613"]
[BlackElo "2620"]

1. e4 {[%clk 00:05:03]} {[%emt 00:00:02]} c5 {[%clk 00:05:03]} {[%emt
00:00:01]} 2. Nf3 {[%clk 00:05:03]} {[%emt 00:00:01]} Nc6 {[%clk 00:05:03]}
{[%emt 00:00:01]} 3. d4 {[%clk 00:05:03]} cxd4 {[%clk 00:05:03]} {[%emt
00:00:02]} 4. Nxd4 {[%clk 00:05:03]} {[%emt 00:00:02]} Nf6 {[%clk 00:05:03]} 5.
Nc3 {[%clk 00:05:03]} {[%emt 00:00:02]} e6 {[%clk 00:05:03]} {[%emt 00:00:02]}
6. Be2 {[%clk 00:05:03]} {[%emt 00:00:03]} d6 {[%clk 00:04:58]} {[%emt
00:00:08]} 7. Be3 {[%clk 00:05:03]} {[%emt 00:00:01]} Be7 {[%clk 00:04:58]} 8.
O-O {[%clk 00:05:03]} {[%emt 00:00:03]} O-O {[%clk 00:04:58]} {[%emt 00:00:01]}
9. Kh1 {[%clk 00:05:03]} {[%emt 00:00:01]} Bd7 {[%clk 00:04:57]} {[%emt
00:00:05]} 10. f3 {[%clk 00:05:03]} {[%emt 00:00:01]} a6 {[%clk 00:04:57]}
{[%emt 00:00:02]} 11. a3 {[%clk 00:05:02]} {[%emt 00:00:03]} Qc7 {[%clk
00:04:57]} {[%emt 00:00:02]} 12. Qc1 {[%clk 00:04:46]} {[%emt 00:00:20]} Rfd8
{[%clk 00:04:57]} {[%emt 00:00:02]} 13. Nb3 {[%clk 00:04:35]} {[%emt 00:00:14]}
Rac8 {[%clk 00:04:55]} {[%emt 00:00:05]} 14. Qd2 {[%clk 00:04:22]} {[%emt
00:00:17]} b5 {[%clk 00:04:54]} {[%emt 00:00:04]} 15. Rad1 {[%clk 00:04:14]}
{[%emt 00:00:11]} Ne5 {[%clk 00:04:54]} {[%emt 00:00:03]} 16. Bd4 {[%clk
00:04:07]} {[%emt 00:00:10]} Bc6 {[%clk 00:04:51]} {[%emt 00:00:06]} 17. Qe3
{[%clk 00:03:59]} {[%emt 00:00:11]} Nfd7 {[%clk 00:04:51]} {[%emt 00:00:04]} 18.
h3 {[%clk 00:03:50]} {[%emt 00:00:12]} Nc4 {[%clk 00:04:48]} {[%emt 00:00:06]}
19. Bxc4 {[%clk 00:03:50]} {[%emt 00:00:02]} bxc4 {[%clk 00:04:48]} {[%emt
00:00:01]} 20. Nc1 {[%clk 00:03:50]} {[%emt 00:00:01]} e5 {[%clk 00:04:48]}
{[%emt 00:00:01]} 21. Ba7 {[%clk 00:03:31]} {[%emt 00:00:22]} Ra8 {[%clk
00:04:48]} 22. Nd5 {[%clk 00:03:22]} {[%emt 00:00:12]} Bxd5 {[%clk 00:04:48]}
{[%emt 00:00:02]} 23. exd5 {[%clk 00:03:16]} {[%emt 00:00:09]} Qxa7 {[%clk
00:04:48]} {[%emt 00:00:01]} 24. Qe1 {[%clk 00:03:00]} {[%emt 00:00:19]} Rab8
{[%clk 00:04:48]} {[%emt 00:00:01]} 25. Qc3 {[%clk 00:02:59]} {[%emt 00:00:04]}
Qc5 {[%clk 00:04:48]} {[%emt 00:00:02]} 26. Rfe1 {[%clk 00:02:52]} {[%emt
00:00:10]} Nb6 {[%clk 00:04:48]} {[%emt 00:00:01]} 27. Re4 {[%clk 00:02:52]}
{[%emt 00:00:02]} Nxd5 {[%clk 00:04:48]} {[%emt 00:00:03]} 28. Qxc4 {[%clk
00:02:48]} {[%emt 00:00:07]} Qxc4 {[%clk 00:04:48]} {[%emt 00:00:01]} 29. Rxc4
{[%clk 00:02:48]} {[%emt 00:00:01]} Ne3 {[%clk 00:04:48]} {[%emt 00:00:01]} 30.
Rc7 {[%clk 00:02:31]} {[%emt 00:00:19]} Nxd1 {[%clk 00:04:48]} {[%emt
00:00:02]} 31. Rxe7 {[%clk 00:02:31]} {[%emt 00:00:01]} h5 {[%clk 00:04:48]}
{[%emt 00:00:02]} 32. b3 {[%clk 00:02:31]} {[%emt 00:00:02]} Rbc8 {[%clk
00:04:48]} 33. c4 {[%clk 00:02:31]} {[%emt 00:00:01]} d5 {[%clk 00:04:48]} 34.
Rxe5 {[%clk 00:02:30]} {[%emt 00:00:05]} dxc4 {[%clk 00:04:48]} 35. Re1 {[%clk
00:02:30]} {[%emt 00:00:02]} c3 {[%clk 00:04:48]} {[%emt 00:00:01]} 36. Na2
{[%clk 00:02:24]} {[%emt 00:00:09]} c2 {[%clk 00:04:48]} {[%emt 00:00:01]} 37.
b4 {[%clk 00:02:20]} {[%emt 00:00:07]} Nc3 {[%clk 00:04:47]} {[%emt 00:00:04]}
0-1

[Event "13 Open de Quenza"]
[Site "Quenza, France"]
[Date "2024.07.07"]
[Round "1.9"]
[White "Travadon, Loic"]
[Black "Gerandi, Pierre-Marie"]
[Result "1-0"]
[TimeControl "5min+3s/move"]
[WhiteElo "2458"]
[BlackElo "1670"]

1. Nf3 {[%clk 00:04:56]} {[%emt 00:00:09]} Nf6 {[%clk 00:05:03]} {[%emt
00:00:01]} 2. c4 {[%clk 00:04:55]} {[%emt 00:00:04]} g6 {[%clk 00:05:03]} 3.
Nc3 {[%clk 00:04:54]} {[%emt 00:00:04]} Bg7 {[%clk 00:05:03]} {[%emt 00:00:01]}
4. e4 {[%clk 00:04:49]} {[%emt 00:00:08]} d6 {[%clk 00:05:03]} {[%emt
00:00:02]} 5. d4 {[%clk 00:04:48]} {[%emt 00:00:04]} Nc6 {[%clk 00:05:00]}
{[%emt 00:00:07]} 6. d5 {[%clk 00:04:44]} {[%emt 00:00:07]} Nb8 {[%clk
00:05:00]} {[%emt 00:00:01]} 7. h3 {[%clk 00:04:39]} {[%emt 00:00:07]} O-O
{[%clk 00:05:00]} {[%emt 00:00:02]} 8. Bd3 {[%clk 00:04:39]} {[%emt 00:00:02]}
e5 {[%clk 00:04:57]} {[%emt 00:00:06]} 9. g4 {[%clk 00:04:38]} {[%emt
00:00:04]} Ne8 {[%clk 00:04:53]} {[%emt 00:00:07]} 10. Bg5 {[%clk 00:04:34]}
{[%emt 00:00:07]} f6 {[%clk 00:04:51]} {[%emt 00:00:06]} 11. Be3 {[%clk
00:04:34]} {[%emt 00:00:01]} f5 {[%clk 00:04:51]} {[%emt 00:00:02]} 12. gxf5
{[%clk 00:04:34]} {[%emt 00:00:02]} gxf5 {[%clk 00:04:51]} {[%emt 00:00:01]} 13.
exf5 {[%clk 00:04:25]} {[%emt 00:00:12]} Bxf5 {[%clk 00:04:51]} {[%emt
00:00:01]} 14. Bxf5 {[%clk 00:04:21]} {[%emt 00:00:06]} Rxf5 {[%clk 00:04:51]}
{[%emt 00:00:01]} 15. Rg1 {[%clk 00:04:21]} {[%emt 00:00:01]} Kh8 {[%clk
00:04:44]} {[%emt 00:00:10]} 16. Ne4 {[%clk 00:04:15]} {[%emt 00:00:09]} Nd7
{[%clk 00:04:44]} {[%emt 00:00:02]} 17. Nfg5 {[%clk 00:04:10]} {[%emt
00:00:07]} Qe7 {[%clk 00:04:17]} {[%emt 00:00:31]} 18. Qg4 {[%clk 00:02:55]}
{[%emt 00:01:17]} Rf8 {[%clk 00:04:17]} {[%emt 00:00:03]} 19. Ne6 {[%clk
00:02:43]} {[%emt 00:00:15]} Rg8 {[%clk 00:04:13]} {[%emt 00:00:08]} 20. Bg5
{[%clk 00:02:37]} {[%emt 00:00:09]} Qf7 {[%clk 00:03:47]} {[%emt 00:00:28]} 21.
Ke2 {[%clk 00:02:33]} {[%emt 00:00:07]} Ndf6 {[%clk 00:03:47]} {[%emt
00:00:01]} 22. Bxf6 {[%clk 00:02:30]} {[%emt 00:00:07]} Nxf6 {[%clk 00:03:46]}
{[%emt 00:00:04]} 23. N4g5 {[%clk 00:02:14]} {[%emt 00:00:18]} Qd7 {[%clk
00:03:29]} {[%emt 00:00:19]} 24. Qh4 {[%clk 00:01:35]} {[%emt 00:00:43]} Bf8
{[%clk 00:03:27]} {[%emt 00:00:05]} 25. Rg3 {[%clk 00:01:20]} {[%emt 00:00:17]}
c6 {[%clk 00:03:24]} {[%emt 00:00:07]} 26. Rf3 {[%clk 00:01:19]} {[%emt
00:00:03]} Nxd5 {[%clk 00:03:02]} {[%emt 00:00:25]} 27. Rf7 {[%clk 00:01:06]}
{[%emt 00:00:16]} 1-0